lending/lending_fUSD_20250224
["ID","MTS","AMOUNT","RATE_DAILY","PERIOD"]
[354320142,1740408661420,-500.0,0.00016684,2]
[354320143,1740408661431,-647.16,0.00016684,2]
[354320144,1740408661440,-500.0,0.00016684,2]
[354320145,1740408661450,-500.0,0.00016684,2]
[354320146,1740408661460,-200.25391401,0.00016684,2]
[354320147,1740408661469,-500.0,0.00016684,2]
[354320148,1740408661479,-500.0,0.00016684,2]
[354320149,1740408661489,-792.13,0.00016684,2]
[354320150,1740408661499,-500.0,0.00016684,2]
[354320151,1740408661508,-500.0,0.00016684,2]
[354320152,1740408661518,-500.0,0.00016684,2]
[354320153,1740408661529,-500.0,0.00016684,2]
[354320154,1740408661538,-685.76,0.00016684,2]
[354320155,1740408661548,-500.0,0.00016684,2]
[354320156,1740408661558,-513.99638271,0.00016684,2]
[354320157,1740408661567,-500.0,0.00016684,2]
[354320158,1740408661576,-500.0,0.00016684,2]
[354320159,1740408661585,-500.0,0.00016684,2]
[354320160,1740408661594,-500.0,0.00016684,2]
[354320161,1740408661603,-500.0,0.00016684,2]
[354320162,1740408661612,-500.0,0.00016684,2]
[354320163,1740408661621,-500.0,0.00016684,2]
[354320164,1740408661631,-500.0,0.00016684,2]
[354320165,1740408661641,-500.0,0.00016684,2]
[354320166,1740408661650,-206.5065734,0.00016684,2]
[354320167,1740408661659,-500.0,0.00016684,2]
[354320168,1740408661668,-500.0,0.00016684,2]
[354320169,1740408661678,-500.0,0.00016684,2]
[354320170,1740408661687,-500.0,0.00016684,2]
[354320171,1740408661696,-500.0,0.00016684,2]
[354320172,1740408661705,-500.0,0.00016684,2]
[354320173,1740408661714,-500.0,0.00016684,2]
[354320174,1740408661723,-513.70878611,0.00016684,2]
[354320175,1740408661834,-713.57,0.00016684,2]
[354320176,1740408661843,-500.0,0.00016684,2]
[354320177,1740408661852,-792.45,0.00016684,2]
[354320178,1740408661862,-500.0,0.00016684,2]
[354320179,1740408661871,-516.41,0.00016684,2]
[354320180,1740408661880,-500.0,0.00016684,2]
[354320181,1740408661889,-500.0,0.00016684,2]
[354320182,1740408661898,-500.0,0.00016684,2]
[354320183,1740408661908,-500.0,0.00016684,2]
[354320184,1740408661917,-500.0,0.00016684,2]
[354320185,1740408661927,-977.59,0.00016684,2]
[354320186,1740408661936,-500.33,0.00016684,2]
[354320187,1740408661946,-541.65051683,0.00016684,2]
[354320188,1740408661955,-500.0,0.00016684,2]
[354320189,1740408661964,-688.78,0.00016684,2]
[354320190,1740408661973,-500.0,0.00016684,2]
[354320191,1740408661982,-723.37,0.00016684,2]
[354320192,1740408661991,-1029.83,0.00016684,2]
[354320193,1740408662000,-603.83,0.00016684,2]
[354320194,1740408662009,-500.0,0.00016684,2]
[354320195,1740408662018,-603.78,0.00016684,2]
[354320196,1740408662029,-500.0,0.00016684,2]
[354320197,1740408662039,-500.0,0.00016684,2]
[354320198,1740408662048,-500.0,0.00016684,2]
[354320199,1740408662057,-500.0,0.00016684,2]
[354320200,1740408662066,-554.99,0.00016684,2]
[354320201,1740408662075,-500.0,0.00016684,2]
[354320202,1740408662084,-507.08,0.00016684,2]
[354320203,1740408662093,-613.4,0.00016684,2]
[354320204,1740408662102,-987.03,0.00016684,2]
[354320205,1740408662114,-500.0,0.00016684,2]
[354320206,1740408662132,-554.99,0.00016684,2]
[354320207,1740408662142,-500.0,0.00016684,2]
[354320208,1740408662151,-621.32,0.00016684,2]
[354320209,1740408662160,-500.0,0.00016684,2]
[354320210,1740408662170,-500.0,0.00016684,2]
[354320211,1740408662180,-500.0,0.00016684,2]
[354320212,1740408662189,-500.0,0.00016684,2]
[354320213,1740408662198,-500.0,0.00016684,2]
[354320214,1740408662207,-500.0,0.00016684,2]
[354320215,1740408662216,-500.0,0.00016684,2]
[354320216,1740408662225,-807.75,0.00016684,2]
[354320217,1740408662235,-500.0,0.00016684,2]
[354320218,1740408662244,-947.05,0.00016684,2]
[354320219,1740408662253,-500.0,0.00016684,2]
[354320220,1740408662263,-500.0,0.00016684,2]
[354320221,1740408662272,-500.0,0.00016684,2]
[354320222,1740408662283,-603.05,0.00016684,2]
[354320223,1740408662293,-630.89,0.00016684,2]
[354320224,1740408662303,-500.0,0.00016684,2]
[354320225,1740408662312,-500.0,0.00016684,2]
[354320226,1740408662321,-500.0,0.00016684,2]
[354320227,1740408662330,-500.0,0.00016684,2]
[354320228,1740408662340,-500.0,0.00016684,2]
[354320229,1740408662349,-500.0,0.00016684,2]
[354320230,1740408662358,-1132.31,0.00016684,2]
[354320231,1740408662367,-500.0,0.00016684,2]
[354320232,1740408662377,-500.0,0.00016684,2]
[354320233,1740408662387,-830.88,0.00016684,2]
[354320234,1740408662397,-621.43,0.00016684,2]
[354320235,1740408662406,-500.0,0.00016684,2]
[354320236,1740408662416,-500.0,0.00016684,2]
[354320237,1740408662425,-556.24,0.00016684,2]
[354320238,1740408662434,-500.0,0.00016684,2]
[354320239,1740408662445,-514.91,0.00016684,2]
[354320240,1740408662455,-500.0,0.00016684,2]
[354320241,1740408662464,-500.0,0.00016684,2]
[354320242,1740408662474,-500.0,0.00016684,2]
[354320243,1740408662484,-708.48,0.00016684,2]
[354320244,1740408662493,-500.0,0.00016684,2]
[354320245,1740408662502,-659.89,0.00016684,2]
[354320246,1740408662511,-500.0,0.00016684,2]
[354320247,1740408662521,-500.0,0.00016684,2]
[354320248,1740408662531,-895.1,0.00016684,2]
[354320249,1740408662541,-857.63,0.00016684,2]
[354320250,1740408662550,-306.792949,0.00016684,2]
[354320251,1740408662559,-500.0,0.00016684,2]
[354320252,1740408662569,-500.0,0.00016684,2]
[354320253,1740408662579,-500.0,0.00016684,2]
[354320254,1740408662589,-500.0,0.00016684,2]
[354320255,1740408662599,-500.0,0.00016684,2]
[354320256,1740408662609,-500.0,0.00016684,2]
[354320257,1740408662618,-500.0,0.00016684,2]
[354320258,1740408662627,-421.813031,0.00016684,2]
[354320259,1740408662637,-500.0,0.00016684,2]
[354320260,1740408662646,-542.71,0.00016684,2]
[354320261,1740408662655,-500.0,0.00016684,2]
[354320262,1740408662664,-500.0,0.00016684,2]
[354320263,1740408662672,-500.0,0.00016684,2]
[354320264,1740408662682,-500.0,0.00016684,2]
[354320265,1740408662691,-504.64281384,0.00016684,2]
[354320266,1740408662700,-500.0,0.00016684,2]
[354320267,1740408662709,-500.0,0.00016684,2]
[354320268,1740408662718,-500.0,0.00016684,2]
[354320269,1740408662728,-500.0,0.00016684,2]
[354320270,1740408662737,-500.0,0.00016684,2]
[354320271,1740408662746,-294.21291217,0.00016684,2]
[354320272,1740408662755,-500.0,0.00016684,2]
[354320273,1740408662764,-500.0,0.00016684,2]
[354320274,1740408662774,-500.0,0.00016684,2]
[354320275,1740408662785,-500.0,0.00016684,2]
[354320276,1740408662795,-739.25,0.00016684,2]
[354320277,1740408662804,-500.0,0.00016684,2]
[354320278,1740408662813,-1051.43,0.00016684,2]
[354320279,1740408662823,-552.82,0.00016684,2]
[354320280,1740408662832,-500.0,0.00016684,2]
[354320281,1740408662841,-952.15,0.00016684,2]
[354320282,1740408662850,-500.0,0.00016684,2]
[354320283,1740408662860,-500.0,0.00016684,2]
[354320284,1740408662869,-500.0,0.00016684,2]
[354320285,1740408662878,-989.53,0.00016684,2]
[354320286,1740408662887,-500.0,0.00016684,2]
[354320287,1740408662897,-500.0,0.00016684,2]
[354320288,1740408662906,-785.99,0.00016684,2]
[354320289,1740408662915,-500.0,0.00016684,2]
[354320290,1740408662925,-500.0,0.00016684,2]
[354320291,1740408662934,-500.0,0.00016684,2]
[354320292,1740408662944,-574.6,0.00016684,2]
[354320293,1740408662953,-500.0,0.00016684,2]
[354320294,1740408662963,-500.0,0.00016684,2]
[354320295,1740408662973,-1016.6,0.00016684,2]
[354320296,1740408662982,-1187.96,0.00016684,2]
[354320297,1740408662992,-918.17,0.00016684,2]
[354320298,1740408663001,-500.0,0.00016684,2]
[354320299,1740408663011,-500.0,0.00016684,2]
[354320300,1740408663021,-510.92,0.00016684,2]
[354320301,1740408663033,-500.0,0.00016684,2]
[354320302,1740408663043,-1105.56,0.00016684,2]
[354320303,1740408663053,-506.4659211,0.00016684,2]
[354320304,1740408663063,-883.83,0.00016684,2]
[354320305,1740408663072,-500.0,0.00016684,2]
[354320306,1740408663082,-500.0,0.00016684,2]
[354320307,1740408663092,-500.0,0.00016684,2]
[354320308,1740408663101,-810.38,0.00016684,2]
[354320309,1740408663112,-500.0,0.00016684,2]
[354320310,1740408663126,-594.95,0.00016684,2]
[354320311,1740408663136,-708.88,0.00016684,2]
[354320312,1740408663146,-500.0,0.00016684,2]
[354320313,1740408663159,-315.8,0.00016684,2]
[354320314,1740408663168,-500.0,0.00016684,2]
[354320315,1740408663179,-500.0,0.00016684,2]
[354320316,1740408663188,-560.44,0.00016684,2]
[354320317,1740408663199,-500.0,0.00016684,2]
[354320318,1740408663209,-500.0,0.00016684,2]
[354320319,1740408663219,-757.18,0.00016684,2]
[354320320,1740408663229,-1499.95,0.00016684,2]
[354320321,1740408663239,-500.0,0.00016684,2]
[354320322,1740408663249,-500.0,0.00016684,2]
[354320323,1740408663258,-500.0,0.00016684,2]
[354320324,1740408663267,-500.0,0.00016684,2]
[354320325,1740408663277,-568.43,0.00016684,2]
[354320326,1740408663289,-1949.65,0.00016684,2]
[354320327,1740408663300,-1029.07,0.00016684,2]
[354320328,1740408663309,-500.0,0.00016684,2]
[354320329,1740408663319,-500.0,0.00016684,2]
[354320330,1740408663329,-1432.1,0.00016684,2]
[354320331,1740408663339,-561.96,0.00016684,2]
[354320332,1740408663350,-645.32,0.00016684,2]
[354320333,1740408663360,-630.50100144,0.00016684,2]
[354320334,1740408663370,-2330.4,0.00016684,2]
[354320335,1740408663381,-500.0,0.00016684,2]
[354320336,1740408663391,-500.0,0.00016684,2]
[354320337,1740408663402,-516.89251579,0.00016684,2]
[354320338,1740408663413,-933.09,0.00016684,2]
[354320339,1740408663424,-500.0,0.00016684,2]
[354320340,1740408663434,-2078.19,0.00016684,2]
[354320341,1740408663445,-1012.69,0.00016684,2]
[354320342,1740408663456,-500.0,0.00016684,2]
[354320343,1740408663466,-500.0,0.00016684,2]
[354320344,1740408663477,-500.0,0.00016684,2]
[354320345,1740408663488,-612.9,0.00016684,2]
[354320346,1740408663498,-1906.14,0.00016684,2]
[354320347,1740408663508,-980.0,0.00016684,2]
[354320348,1740408663518,-508.72,0.00016684,2]
[354320349,1740408663537,-771.13,0.00016684,2]
[354320350,1740408663547,-547.65,0.00016684,2]
[354320351,1740408663558,-500.0,0.00016684,2]
[354320352,1740408663568,-867.19,0.00016684,2]
[354320353,1740408663579,-668.94,0.00016684,2]
[354320354,1740408663590,-500.0,0.00016684,2]
[354320355,1740408663600,-500.0,0.00016684,2]
[354320356,1740408663610,-1409.2,0.00016684,2]
[354320357,1740408663620,-2087.51,0.00016684,2]
[354320358,1740408663725,-1928.05,0.00016684,2]
[354320359,1740408663735,-1421.34,0.00016684,2]
[354320360,1740408663745,-558.74748195,0.00016684,2]
[354320361,1740408663754,-577.13,0.00016684,2]
[354320362,1740408663763,-1844.12,0.00016684,2]
[354320363,1740408663773,-965.43,0.00016684,2]
[354320364,1740408663787,-582.73,0.00016684,2]
[354320365,1740408663797,-500.0,0.00016684,2]
[354320366,1740408663807,-265.35776203,0.00016684,2]
[354320367,1740408663817,-737.28,0.00016684,2]
[354320368,1740408663828,-500.0,0.00016684,2]
[354320369,1740408663838,-849.78,0.00016684,2]
[354320370,1740408663848,-1202.68,0.00016684,2]
[354320371,1740408663859,-2064.96,0.00016684,2]
[354320372,1740408663869,-829.61,0.00016684,2]
[354320373,1740408663879,-1638.47,0.00016684,2]
[354320374,1740408663890,-500.0,0.00016684,2]
[354320375,1740408663899,-634.72,0.00016684,2]
[354320376,1740408663909,-317.29125598,0.00016684,2]
[354320377,1740408663919,-500.0,0.00016684,2]
[354320378,1740408663929,-500.0,0.00016684,2]
[354320379,1740408663939,-2101.64,0.00016684,2]
[354320380,1740408663949,-556.24230033,0.00016684,2]
[354320381,1740408663959,-1075.91,0.00016684,2]
[354320382,1740408663969,-1786.12,0.00016684,2]
[354320383,1740408663978,-1063.59,0.00016684,2]
[354320384,1740408663988,-500.0,0.00016684,2]
[354320385,1740408663997,-500.0,0.00016684,2]
[354320386,1740408664007,-500.0,0.00016684,2]
[354320387,1740408664016,-623.6,0.00016684,2]
[354320388,1740408664026,-500.0,0.00016684,2]
[354320389,1740408664039,-552.83,0.00016684,2]
[354320390,1740408664049,-548.02,0.00016684,2]
[354320391,1740408664059,-564.88,0.00016684,2]
[354320392,1740408664070,-1000.72,0.00016684,2]
[354320393,1740408664080,-506.48,0.00016684,2]
[354320394,1740408664090,-500.0,0.00016684,2]
[354320395,1740408664101,-1830.0,0.00016684,2]
[354320396,1740408664111,-500.0,0.00016684,2]
[354320397,1740408664124,-500.0,0.00016684,2]
[354320398,1740408664134,-500.0,0.00016684,2]
[354320399,1740408664145,-500.0,0.00016684,2]
[354320400,1740408664155,-799.95,0.00016684,2]
[354320401,1740408664166,-601.76,0.00016684,2]
[354320402,1740408664176,-1492.05,0.00016684,2]
[354320403,1740408664187,-2916.32,0.00016684,2]
[354320404,1740408664200,-500.0,0.00016684,2]
[354320405,1740408664211,-500.0,0.00016684,2]
[354320406,1740408664221,-500.0,0.00016684,2]
[354320407,1740408664231,-953.1,0.00016684,2]
[354320408,1740408664241,-1485.8,0.00016684,2]
[354320409,1740408664252,-500.0,0.00016684,2]
[354320410,1740408664262,-500.0,0.00016684,2]
[354320411,1740408664272,-1831.82,0.00016684,2]
[354320412,1740408664286,-1922.29,0.00016684,2]
[354320413,1740408664296,-500.0,0.00016684,2]
[354320414,1740408664306,-558.93,0.00016684,2]
[354320415,1740408664316,-853.69,0.00016684,2]
[354320416,1740408664327,-2226.08,0.00016684,2]
[354320417,1740408664338,-1727.17,0.00016684,2]
[354320418,1740408664349,-1193.44,0.00016684,2]
[354320419,1740408664359,-1260.45,0.00016684,2]
[354320420,1740408664370,-500.0,0.00016684,2]
[354320421,1740408664380,-500.0,0.00016684,7]
[354320422,1740408664390,-1732.9,0.00016684,2]
[354320423,1740408664401,-837.39,0.00016684,2]
[354320424,1740408664411,-500.0,0.00016684,2]
[354320425,1740408664422,-2820.67,0.00016684,2]
[354320426,1740408664432,-1781.49,0.00016684,2]
[354320427,1740408664441,-1814.26,0.00016684,2]
[354320428,1740408664450,-500.0,0.00016684,2]
[354320429,1740408664460,-500.0,0.00016684,2]
[354320430,1740408664470,-1378.99,0.00016684,2]
[354320431,1740408664480,-542.06,0.00016684,2]
[354320432,1740408664490,-500.0,0.00016684,2]
[354320433,1740408664499,-1316.8,0.00016684,2]
[354320434,1740408664509,-500.0,0.00016684,2]
[354320435,1740408664518,-500.0,0.00016684,2]
[354320436,1740408664527,-500.0,0.00016684,2]
[354320437,1740408664540,-500.0,0.00016684,2]
[354320438,1740408664550,-503.68,0.00016684,2]
[354320439,1740408664560,-902.17,0.00016684,2]
[354320440,1740408664570,-1113.82,0.00016684,2]
[354320441,1740408664579,-1020.41,0.00016684,2]
[354320442,1740408664588,-855.0,0.00016684,2]
[354320443,1740408664598,-2365.06,0.00016684,2]
[354320444,1740408664607,-2236.0,0.00016684,2]
[354320445,1740408664617,-1788.53,0.00016684,2]
[354320446,1740408664626,-614.29,0.00016684,2]
[354320447,1740408664635,-500.0,0.00016684,2]
[354320448,1740408664644,-500.0,0.00016684,2]
[354320449,1740408664654,-500.0,0.00016684,2]
[354320450,1740408664663,-670.7,0.00016684,2]
[354320451,1740408664673,-500.0,0.00016684,2]
[354320452,1740408664683,-3047.91,0.00016684,2]
[354320453,1740408664693,-500.0,0.00016684,2]
[354320454,1740408664702,-2393.53,0.00016684,2]
[354320455,1740408664712,-813.27,0.00016684,2]
[354320456,1740408664721,-500.0,0.00016684,2]
[354320457,1740408664731,-1924.63,0.00016684,2]
[354320458,1740408664740,-2168.8,0.00016684,2]
[354320459,1740408664750,-500.0,0.00016684,2]
[354320460,1740408664759,-2139.66,0.00016684,2]
[354320461,1740408664769,-500.0,0.00016684,2]
[354320462,1740408664778,-500.0,0.00016684,2]
[354320463,1740408664791,-500.0,0.00016684,2]
[354320464,1740408664801,-704.57,0.00016684,2]
[354320465,1740408664811,-926.55,0.00016684,2]
[354320466,1740408664821,-500.0,0.00016684,2]
[354320467,1740408664831,-2142.33,0.00016684,2]
[354320468,1740408664840,-1890.91,0.00016684,2]
[354320469,1740408664849,-524.86714388,0.00016684,2]
[354320470,1740408664859,-500.0,0.00016684,2]
[354320471,1740408664869,-2194.28,0.00016684,2]
[354320472,1740408664878,-1950.51,0.00016684,2]
[354320473,1740408664887,-500.0,0.00016684,2]
[354320474,1740408664897,-500.0,0.00016684,2]
[354320475,1740408664907,-560.47,0.00016684,2]
[354320476,1740408664916,-590.38680023,0.00016684,2]
[354320477,1740408664926,-609.16,0.00016684,2]
[354320478,1740408664936,-1914.76,0.00016684,2]
[354320479,1740408664945,-565.85,0.00016684,2]
[354320480,1740408664956,-515.26,0.00016684,2]
[354320481,1740408664966,-500.0,0.00016684,2]
[354320482,1740408664976,-910.63,0.00016684,2]
[354320483,1740408664985,-2295.31,0.00016684,2]
[354320484,1740408664995,-500.0,0.00016684,2]
[354320485,1740408665004,-655.3,0.00016684,2]
[354320486,1740408665014,-544.29,0.00016684,2]
[354320487,1740408665024,-2211.12,0.00016684,2]
[354320488,1740408665036,-1974.62,0.00016684,2]
[354320489,1740408665046,-1141.38,0.00016684,2]
[354320490,1740408665056,-500.0,0.00016684,2]
[354320491,1740408665065,-357.60647001,0.00016684,2]
[354320492,1740408665075,-500.0,0.00016684,2]
[354320493,1740408665084,-1252.34,0.00016684,2]
[354320494,1740408665093,-500.0,0.00016684,2]
[354320495,1740408665103,-500.0,0.00016684,2]
[354320496,1740408665113,-2456.73,0.00016684,2]
[354320497,1740408665125,-563.66,0.00016684,2]
[354320498,1740408665135,-2322.07,0.00016684,2]
[354320499,1740408665144,-245.21396538,0.00016684,2]
[354320500,1740408665155,-1387.77,0.00016684,2]
[354320501,1740408665165,-1289.44,0.00016684,2]
[354320502,1740408665175,-669.99,0.00016684,2]
[354320503,1740408665185,-500.0,0.00016684,2]
[354320504,1740408665196,-1314.42,0.00016684,2]
[354320505,1740408665206,-1092.99,0.00016684,2]
[354320506,1740408665216,-500.0,0.00016684,2]
[354320507,1740408665226,-1353.03,0.00016684,2]
[354320508,1740408665235,-500.0,0.00016684,2]
[354320509,1740408665246,-430.19009672,0.00016684,2]
[354320510,1740408665255,-687.08,0.00016684,2]
[354320511,1740408665265,-1198.61,0.00016684,2]
[354320512,1740408665274,-319.53172884,0.00016684,2]
[354320513,1740408665285,-500.0,0.00016684,2]
[354320514,1740408665295,-500.0,0.00016684,2]
[354320515,1740408665305,-837.42,0.00016684,2]
[354320516,1740408665315,-2373.17,0.00016684,2]
[354320517,1740408665325,-500.0,0.00016684,2]
[354320518,1740408665333,-1253.26,0.00016684,2]
[354320519,1740408665343,-1358.45,0.00016684,2]
[354320520,1740408665353,-500.0,0.00016684,2]
[354320521,1740408665363,-500.0,0.00016684,2]
[354320522,1740408665372,-500.0,0.00016684,2]
[354320523,1740408665382,-1198.63,0.00016684,2]
[354320524,1740408665391,-1016.84,0.00016684,2]
[354320525,1740408665401,-500.0,0.00016684,2]
[354320526,1740408665504,-1842.63,0.00016684,2]
[354320527,1740408665515,-3100.07,0.00016684,2]
[354320528,1740408665524,-688.57,0.00016684,2]
[354320529,1740408665536,-500.0,0.00016684,2]
[354320530,1740408665546,-949.52,0.00016684,2]
[354320531,1740408665555,-500.0,0.00016684,2]
[354320532,1740408665565,-500.0,0.00016684,2]
[354320533,1740408665575,-524.98,0.00016684,2]
[354320534,1740408665585,-500.0,0.00016684,2]
[354320535,1740408665594,-1387.0,0.00016684,2]
[354320536,1740408665604,-1332.09,0.00016684,2]
[354320537,1740408665615,-500.0,0.00016684,2]
[354320538,1740408665624,-3353.19,0.00016684,2]
[354320539,1740408665634,-500.0,0.00016684,2]
[354320540,1740408665644,-2190.36,0.00016684,2]
[354320541,1740408665653,-500.0,0.00016684,2]
[354320542,1740408665663,-546.52317766,0.00016684,2]
[354320543,1740408665672,-1398.63,0.00016684,2]
[354320544,1740408665681,-566.65,0.00016684,2]
[354320545,1740408665690,-2208.91,0.00016684,2]
[354320546,1740408665699,-1268.58,0.00016684,2]
[354320547,1740408665709,-2023.71,0.00016684,2]
[354320548,1740408665718,-500.0,0.00016684,2]
[354320549,1740408665727,-1286.76,0.00016684,2]
[354320550,1740408665736,-500.0,0.00016684,2]
[354320551,1740408665746,-500.0,0.00016684,2]
[354320552,1740408665755,-2373.16,0.00016684,2]
[354320553,1740408665765,-500.0,0.00016684,2]
[354320554,1740408665775,-1388.45,0.00016684,2]
[354320555,1740408665787,-782.35,0.00016684,2]
[354320556,1740408665796,-1370.27,0.00016684,2]
[354320557,1740408665806,-500.0,0.00016684,2]
[354320558,1740408665816,-1473.61,0.00016684,2]
[354320559,1740408665825,-150.0,0.00016693,2]
[354320560,1740408665834,-1399.62,0.00016703,2]
[354320561,1740408665844,-5779.52635391,0.00016722,2]
[354320562,1740408665853,-150.0,0.00016732,2]
[354320563,1740408665862,-150.0,0.00016752,2]
[354320564,1740408665871,-500.0,0.00016765,2]
[354320565,1740408665881,-500.0,0.00016765,2]
[354320566,1740408665890,-500.0,0.00016765,2]
[354320567,1740408665900,-500.0,0.00016765,2]
[354320568,1740408665910,-500.0,0.00016765,2]
[354320569,1740408665919,-261.7,0.00016765,2]
[354320570,1740408665929,-500.0,0.00016765,2]
[354320571,1740408665938,-500.0,0.00016765,2]
[354320572,1740408665947,-500.0,0.00016765,2]
[354320573,1740408665957,-500.0,0.00016765,2]
[354320574,1740408665966,-500.0,0.00016765,2]
[354320575,1740408665976,-500.0,0.00016765,2]
[354320576,1740408665985,-500.0,0.00016765,2]
[354320577,1740408665995,-500.0,0.00016765,2]
[354320578,1740408666005,-500.0,0.00016765,2]
[354320579,1740408666014,-226.28682653,0.00016765,2]
[354320580,1740408666024,-1499.95,0.00016766,2]
[354320581,1740408666036,-1949.65,0.00016766,2]
[354320582,1740408666046,-1432.1,0.00016766,2]
[354320583,1740408666055,-2330.4,0.00016766,2]
[354320584,1740408666065,-933.09,0.00016766,2]
[354320585,1740408666075,-1906.14,0.00016766,2]
[354320586,1740408666084,-2087.51,0.00016766,2]
[354320587,1740408666094,-737.28,0.00016766,2]
[354320588,1740408666103,-634.72,0.00016766,2]
[354320589,1740408666112,-500.0,0.00016766,2]
[354320590,1740408666124,-1000.72,0.00016766,2]
[354320591,1740408666134,-2916.32,0.00016766,2]
[354320592,1740408666144,-1922.29,0.00016766,2]
[354320593,1740408666153,-1193.44,0.00016766,2]
[354320594,1740408666166,-1316.8,0.00016766,2]
[354320595,1740408666176,-500.0,0.00016766,2]
[354320596,1740408666186,-1924.63,0.00016766,2]
[354320597,1740408666197,-2194.28,0.00016766,2]
[354320598,1740408666208,-1198.63,0.00016766,2]
[354320599,1740408666218,-3353.19,0.00016766,2]
[354320600,1740408666228,-524.69238031,0.00016767,2]
[354320601,1740408666237,-500.0,0.00016767,2]
[354320602,1740408666247,-500.0,0.00016767,7]
[354320603,1740408666256,-500.0,0.00016767,2]
[354320604,1740408666266,-500.0,0.00016767,2]
[354320605,1740408666275,-500.0,0.00016767,2]
[354320606,1740408666295,-500.0,0.00016767,2]
[354320607,1740408666309,-500.0,0.00016767,2]
[354320608,1740408666318,-520.49818344,0.00016767,2]
[354320609,1740408666328,-500.0,0.00016767,2]
[354320610,1740408666338,-500.0,0.00016767,2]
[354320611,1740408666347,-500.0,0.00016767,2]
[354320612,1740408666357,-500.0,0.00016767,2]
[354320613,1740408666367,-500.0,0.00016767,2]
[354320614,1740408666376,-500.0,0.00016767,2]
[354320615,1740408666386,-500.0,0.00016767,2]
[354320616,1740408666395,-500.0,0.00016767,2]
[354320617,1740408666405,-500.0,0.00016767,2]
[354320618,1740408666416,-500.0,0.00016767,2]
[354320619,1740408666427,-500.0,0.00016767,2]
[354320620,1740408666437,-500.0,0.00016767,2]
[354320621,1740408666447,-500.0,0.00016767,2]
[354320622,1740408666457,-576.70465817,0.00016767,2]
[354320623,1740408666467,-500.0,0.00016767,2]
[354320624,1740408666477,-513.48,0.00016767,2]
[354320625,1740408666486,-500.0,0.00016767,2]
[354320626,1740408666496,-705.72,0.00016767,2]
[354320627,1740408666506,-500.0,0.00016767,2]
[354320628,1740408666516,-500.0,0.00016767,2]
[354320629,1740408666526,-700.78,0.00016767,2]
[354320630,1740408666540,-500.0,0.00016767,2]
[354320631,1740408666550,-500.0,0.00016767,2]
[354320632,1740408666559,-500.0,0.00016767,2]
[354320633,1740408666569,-500.0,0.00016767,2]
[354320634,1740408666578,-871.23,0.00016767,2]
[354320635,1740408666587,-552.51,0.00016767,2]
[354320636,1740408666596,-500.0,0.00016767,2]
[354320637,1740408666605,-500.0,0.00016767,2]
[354320638,1740408666618,-500.0,0.00016767,2]
[354320639,1740408666628,-500.0,0.00016767,2]
[354320640,1740408666638,-500.0,0.00016767,2]
[354320641,1740408666648,-910.6,0.00016767,2]